[Event "*** Titled Tuesday Blitz"]
[Site "Chess.com"]
[Date "2020.02.04"]
[Round "6"]
[White "vinniethepooh"]
[Black "Witik"]
[Result "1-0"]
[WhiteElo "2787"]
[BlackElo "2595"]
[TimeControl "180+2"]
[EndTime "10:22:36 PST"]
[Termination "vinniethepooh won on time"]

1. d4 {[%clk 0:03:01.9]} 1... Nf6 {[%clk 0:02:58.6]} 2. c4 {[%clk 0:03:03.4]}
2... g6 {[%clk 0:02:59.5]} 3. Nc3 {[%clk 0:03:04.6]} 3... Bg7 {[%clk 0:03:01]}
4. e4 {[%clk 0:03:05.8]} 4... d6 {[%clk 0:03:02.3]} 5. Be2 {[%clk 0:03:07.4]}
5... O-O {[%clk 0:03:03.6]} 6. Be3 {[%clk 0:03:09]} 6... Na6 {[%clk 0:02:59]} 7.
Nf3 {[%clk 0:03:07.7]} 7... Qe8 {[%clk 0:02:59.1]} 8. O-O {[%clk 0:03:03.6]}
8... e5 {[%clk 0:02:59.8]} 9. dxe5 {[%clk 0:03:00.5]} 9... dxe5 {[%clk
0:02:58.1]} 10. h3 {[%clk 0:03:01.4]} 10... c6 {[%clk 0:02:51.6]} 11. Qd6 {[%clk
0:02:51.7]} 11... Nh5 {[%clk 0:02:51.4]} 12. Rfd1 {[%clk 0:02:30]} 12... f5
{[%clk 0:02:24.2]} 13. exf5 {[%clk 0:02:02.8]} 13... gxf5 {[%clk 0:02:00.4]} 14.
c5 {[%clk 0:01:48.6]} 14... f4 {[%clk 0:01:42.3]} 15. Bc1 {[%clk 0:01:34.5]}
15... e4 {[%clk 0:01:41.5]} 16. Ng5 {[%clk 0:01:27]} 16... f3 {[%clk 0:01:41.4]}
17. Bc4+ {[%clk 0:01:10.8]} 17... Kh8 {[%clk 0:01:38]} 18. Nf7+ {[%clk
0:00:35.2]} 18... Rxf7 {[%clk 0:01:36.9]} 19. Bxf7 {[%clk 0:00:37.1]} 19... Qxf7
{[%clk 0:01:38.1]} 20. Qd8+ {[%clk 0:00:38.7]} 20... Bf8 {[%clk 0:01:31.6]} 21.
Bh6 {[%clk 0:00:35.2]} 21... Ng7 {[%clk 0:00:43.8]} 22. Nxe4 {[%clk 0:00:34.6]}
22... Ne6 {[%clk 0:00:41.1]} 23. Qh4 {[%clk 0:00:24.1]} 23... Bd7 {[%clk
0:00:33.9]} 24. Bg5 {[%clk 0:00:10.7]} 24... Naxc5 {[%clk 0:00:26.1]} 25. Nxc5
{[%clk 0:00:10.3]} 25... Nxc5 {[%clk 0:00:17.3]} 26. Qd4+ {[%clk 0:00:10.8]}
26... Kg8 {[%clk 0:00:16.7]} 27. b4 {[%clk 0:00:12.2]} 27... Ne6 {[%clk
0:00:14.4]} 28. Qxd7 {[%clk 0:00:09.6]} 28... Nxg5 {[%clk 0:00:15.3]} 29. Qg4
{[%clk 0:00:08.6]} 29... Qg6 {[%clk 0:00:16.3]} 30. h4 {[%clk 0:00:05.2]} 30...
Nf7 {[%clk 0:00:17.5]} 31. Qxf3 {[%clk 0:00:05.3]} 31... Bxb4 {[%clk 0:00:17.9]}
32. Rab1 {[%clk 0:00:05.7]} 32... a5 {[%clk 0:00:15]} 33. a3 {[%clk 0:00:06.6]}
33... Bc5 {[%clk 0:00:11.4]} 34. Rxb7 {[%clk 0:00:07.7]} 34... Rf8 {[%clk
0:00:13.1]} 35. Rdd7 {[%clk 0:00:07.7]} 35... Ne5 {[%clk 0:00:11.4]} 36. Qb3+
{[%clk 0:00:05.8]} 36... Kh8 {[%clk 0:00:12.4]} 37. Qc3 {[%clk 0:00:05]} 37...
Bxf2+ {[%clk 0:00:10.4]} 38. Kh1 {[%clk 0:00:06.5]} 38... Bg3 {[%clk 0:00:08.8]}
39. Rxh7+ {[%clk 0:00:07]} 39... Qxh7 {[%clk 0:00:07.1]} 40. Rxh7+ {[%clk
0:00:08.9]} 40... Kxh7 {[%clk 0:00:09]} 41. Qxg3 {[%clk 0:00:10.8]} 41... Rf5
{[%clk 0:00:07.1]} 42. Kh2 {[%clk 0:00:07.6]} 42... c5 {[%clk 0:00:08]} 43. Qc3
{[%clk 0:00:08.2]} 43... c4 {[%clk 0:00:06.2]} 44. Kh3 {[%clk 0:00:09.3]} 44...
Kg6 {[%clk 0:00:06.6]} 45. Qd4 {[%clk 0:00:09.4]} 45... Kf6 {[%clk 0:00:04.7]}
46. Qd6+ {[%clk 0:00:10.4]} 46... Kf7 {[%clk 0:00:05.9]} 47. Qc7+ {[%clk
0:00:11.6]} 47... Ke6 {[%clk 0:00:07.1]} 48. Qc8+ {[%clk 0:00:11.5]} 48... Kf6
{[%clk 0:00:08]} 49. Kg3 {[%clk 0:00:10.8]} 49... Kg6 {[%clk 0:00:04]} 50. Qe6+
{[%clk 0:00:11.6]} 1-0

[Event "*** Titled Tuesday Blitz"]
[Site "Chess.com"]
[Date "2020.02.04"]
[Round "6"]
[White "BocharovD"]
[Black "Firouzja2003"]
[Result "0-1"]
[WhiteElo "2760"]
[BlackElo "3157"]
[TimeControl "180+2"]
[EndTime "10:22:49 PST"]
[Termination "Firouzja2003 won by resignation"]

1. Nf3 {[%clk 0:03:01.9]} 1... d5 {[%clk 0:03:00.7]} 2. d4 {[%clk 0:03:00.9]}
2... Nf6 {[%clk 0:03:01.4]} 3. c4 {[%clk 0:03:01.8]} 3... e6 {[%clk 0:03:02.2]}
4. Nc3 {[%clk 0:03:01.5]} 4... c5 {[%clk 0:03:02]} 5. cxd5 {[%clk 0:03:00.5]}
5... Nxd5 {[%clk 0:03:03.4]} 6. g3 {[%clk 0:02:56.7]} 6... Nxc3 {[%clk
0:02:55.1]} 7. bxc3 {[%clk 0:02:57.4]} 7... cxd4 {[%clk 0:02:56.6]} 8. cxd4
{[%clk 0:02:58.4]} 8... b6 {[%clk 0:02:57.9]} 9. Bg2 {[%clk 0:02:57.5]} 9... Bb7
{[%clk 0:02:58.5]} 10. O-O {[%clk 0:02:58.2]} 10... Be7 {[%clk 0:02:59.2]} 11.
Bf4 {[%clk 0:02:57]} 11... O-O {[%clk 0:02:59.3]} 12. Rc1 {[%clk 0:02:57.9]}
12... Bd6 {[%clk 0:02:54.7]} 13. Bxd6 {[%clk 0:02:45.2]} 13... Qxd6 {[%clk
0:02:56.6]} 14. Qc2 {[%clk 0:02:46.3]} 14... Qe7 {[%clk 0:01:36.3]} 15. Qc7
{[%clk 0:02:15.3]} 15... Qxc7 {[%clk 0:01:29.9]} 16. Rxc7 {[%clk 0:02:15.5]}
16... Bd5 {[%clk 0:01:31.8]} 17. Ne5 {[%clk 0:02:16.1]} 17... Na6 {[%clk
0:01:31.8]} 18. Bxd5 {[%clk 0:02:16.2]} 18... Nxc7 {[%clk 0:01:31.8]} 19. Bxa8
{[%clk 0:02:17.1]} 19... Rxa8 {[%clk 0:01:32.8]} 20. Rc1 {[%clk 0:02:18.7]}
20... Nb5 {[%clk 0:01:34]} 21. e3 {[%clk 0:02:15.8]} 21... f6 {[%clk 0:01:34.7]}
22. Nd3 {[%clk 0:02:12]} 22... Rd8 {[%clk 0:01:22.8]} 23. a4 {[%clk 0:02:07.5]}
23... Nd6 {[%clk 0:01:21.3]} 24. Rc7 {[%clk 0:02:08]} 24... a5 {[%clk
0:00:28.8]} 25. Nf4 {[%clk 0:02:07.7]} 25... Rc8 {[%clk 0:00:19.2]} 26. Rd7
{[%clk 0:01:53.6]} 26... Ne4 {[%clk 0:00:08.5]} 27. Nxe6 {[%clk 0:01:47.2]}
27... g5 {[%clk 0:00:06]} 28. Nc7 {[%clk 0:01:39.8]} 28... g4 {[%clk 0:00:05.9]}
29. Kf1 {[%clk 0:01:26.9]} 29... f5 {[%clk 0:00:07.1]} 30. Ke2 {[%clk
0:01:26.6]} 30... Nf6 {[%clk 0:00:08.4]} 31. Rd6 {[%clk 0:01:21.1]} 31... Kf7
{[%clk 0:00:09.7]} 32. Nd5 {[%clk 0:00:29.2]} 32... Ne4 {[%clk 0:00:10.8]} 33.
Rxb6 {[%clk 0:00:22.9]} 33... Rc2+ {[%clk 0:00:11.9]} 34. Ke1 {[%clk 0:00:20.6]}
34... Rxf2 {[%clk 0:00:13.8]} 35. Nc3 {[%clk 0:00:20.2]} 35... Rf3 {[%clk
0:00:13.1]} 36. Nxe4 {[%clk 0:00:20.9]} 36... Rxe3+ {[%clk 0:00:14.2]} 37. Kd2
{[%clk 0:00:22.5]} 37... Rxe4 {[%clk 0:00:16.1]} 38. Kd3 {[%clk 0:00:23.9]}
38... Re1 {[%clk 0:00:16.7]} 39. Rb5 {[%clk 0:00:25.2]} 39... Kf6 {[%clk
0:00:18.1]} 40. Rxa5 {[%clk 0:00:26.4]} 40... Rh1 {[%clk 0:00:19.8]} 41. Ra8
{[%clk 0:00:26.1]} 41... Rxh2 {[%clk 0:00:20.9]} 42. a5 {[%clk 0:00:27.7]} 42...
Rh3 {[%clk 0:00:20.5]} 43. a6 {[%clk 0:00:27.4]} 43... Rxg3+ {[%clk 0:00:22.4]}
44. Kc4 {[%clk 0:00:29]} 44... Ra3 {[%clk 0:00:23.9]} 45. Kb4 {[%clk 0:00:30]}
45... Ra1 {[%clk 0:00:24.8]} 46. d5 {[%clk 0:00:31.9]} 46... g3 {[%clk 0:00:25]}
47. Rg8 {[%clk 0:00:32.5]} 47... f4 {[%clk 0:00:08.1]} 48. Kb5 {[%clk
0:00:34.4]} 48... Ke5 {[%clk 0:00:09]} 49. Rg5+ {[%clk 0:00:34.3]} 49... Kd6
{[%clk 0:00:10.4]} 50. Kb6 {[%clk 0:00:35.2]} 50... h5 {[%clk 0:00:10.3]} 51. a7
{[%clk 0:00:34]} 51... h4 {[%clk 0:00:10.6]} 52. Kb7 {[%clk 0:00:31.4]} 52...
Rxa7+ {[%clk 0:00:11]} 53. Kxa7 {[%clk 0:00:31.6]} 53... h3 {[%clk 0:00:12.3]}
54. Kb6 {[%clk 0:00:25.7]} 54... h2 {[%clk 0:00:13.4]} 55. Rh5 {[%clk
0:00:25.6]} 55... g2 {[%clk 0:00:14.9]} 0-1

[Event "*** Titled Tuesday Blitz"]
[Site "Chess.com"]
[Date "2020.02.04"]
[Round "6"]
[White "GadimbayliA"]
[Black "Azatic"]
[Result "1-0"]
[WhiteElo "2932"]
[BlackElo "2644"]
[TimeControl "180+2"]
[EndTime "10:22:50 PST"]
[Termination "GadimbayliA won by resignation"]

1. e4 {[%clk 0:02:24.6]} 1... c5 {[%clk 0:02:59.5]} 2. Nf3 {[%clk 0:02:16.5]}
2... e6 {[%clk 0:02:59.2]} 3. d4 {[%clk 0:02:16.5]} 3... cxd4 {[%clk 0:03:01.1]}
4. Nxd4 {[%clk 0:02:18.4]} 4... a6 {[%clk 0:03:02.1]} 5. Bd3 {[%clk 0:02:19.9]}
5... Nf6 {[%clk 0:03:01.9]} 6. O-O {[%clk 0:02:20.9]} 6... d6 {[%clk 0:03:03.4]}
7. c4 {[%clk 0:02:21.6]} 7... Be7 {[%clk 0:03:04.1]} 8. Nc3 {[%clk 0:02:23]}
8... O-O {[%clk 0:03:05.5]} 9. Be3 {[%clk 0:02:24.7]} 9... Nbd7 {[%clk
0:03:05.5]} 10. f4 {[%clk 0:02:24.1]} 10... b6 {[%clk 0:03:03.8]} 11. b4 {[%clk
0:02:13.3]} 11... Bb7 {[%clk 0:02:53.4]} 12. f5 {[%clk 0:02:14]} 12... e5 {[%clk
0:02:50.2]} 13. Nb3 {[%clk 0:02:13.9]} 13... Rc8 {[%clk 0:02:43.7]} 14. Qe2
{[%clk 0:02:12.2]} 14... b5 {[%clk 0:02:41.5]} 15. Na5 {[%clk 0:02:06.5]} 15...
Ba8 {[%clk 0:02:05.3]} 16. Rac1 {[%clk 0:01:51]} 16... bxc4 {[%clk 0:02:05.9]}
17. Bxc4 {[%clk 0:01:45.1]} 17... Nxe4 {[%clk 0:02:04.7]} 18. Nxe4 {[%clk
0:01:44.9]} 18... Bxe4 {[%clk 0:02:06.6]} 19. Bxa6 {[%clk 0:01:46.4]} 19... Rxc1
{[%clk 0:02:06.1]} 20. Rxc1 {[%clk 0:01:48.3]} 20... Qa8 {[%clk 0:01:53.1]} 21.
Rc7 {[%clk 0:01:09.9]} 21... Rd8 {[%clk 0:01:39.3]} 22. Bb7 {[%clk 0:00:35.5]}
22... Qb8 {[%clk 0:00:32.8]} 23. Qc4 {[%clk 0:00:34.2]} 23... d5 {[%clk
0:00:25.7]} 24. Qc6 {[%clk 0:00:25.9]} 24... Bxf5 {[%clk 0:00:23.4]} 25. h3
{[%clk 0:00:10.7]} 25... d4 {[%clk 0:00:19.9]} 26. Bd2 {[%clk 0:00:10.2]} 26...
Bf8 {[%clk 0:00:21.1]} 27. Qc1 {[%clk 0:00:04]} 27... Kh8 {[%clk 0:00:20.6]} 28.
a3 {[%clk 0:00:04.7]} 28... Be6 {[%clk 0:00:20.8]} 29. Be4 {[%clk 0:00:05.6]}
29... Nf6 {[%clk 0:00:21.7]} 30. Bb1 {[%clk 0:00:04.4]} 30... Rc8 {[%clk
0:00:23]} 31. Rxc8 {[%clk 0:00:04.7]} 31... Bxc8 {[%clk 0:00:23.8]} 32. Nc6
{[%clk 0:00:05.4]} 32... Qc7 {[%clk 0:00:19.2]} 33. Nxe5 {[%clk 0:00:06.8]}
33... Qxe5 {[%clk 0:00:17.6]} 34. Qxc8 {[%clk 0:00:07.1]} 34... Kg8 {[%clk
0:00:19.3]} 35. Bd3 {[%clk 0:00:07.4]} 35... Nd5 {[%clk 0:00:12]} 36. Qf5 {[%clk
0:00:06.8]} 36... Qxf5 {[%clk 0:00:06.7]} 37. Bxf5 {[%clk 0:00:08.7]} 37... Nc3
{[%clk 0:00:08.3]} 38. Bd3 {[%clk 0:00:09.5]} 38... g6 {[%clk 0:00:09.6]} 39.
Kf2 {[%clk 0:00:09.9]} 39... f5 {[%clk 0:00:09.7]} 40. Ke1 {[%clk 0:00:11.2]}
40... Kf7 {[%clk 0:00:10.8]} 41. Bxc3 {[%clk 0:00:12]} 41... dxc3 {[%clk
0:00:12.7]} 42. Kd1 {[%clk 0:00:13.9]} 42... Ke6 {[%clk 0:00:13.6]} 43. Kc2
{[%clk 0:00:15.8]} 43... Bg7 {[%clk 0:00:14.5]} 44. Bc4+ {[%clk 0:00:17.3]}
44... Kd6 {[%clk 0:00:15.4]} 45. Bg8 {[%clk 0:00:18]} 45... h6 {[%clk
0:00:08.1]} 46. Bh7 {[%clk 0:00:18.9]} 46... g5 {[%clk 0:00:09.5]} 47. Bxf5
{[%clk 0:00:20.2]} 47... Bd4 {[%clk 0:00:11.1]} 48. Bd3 {[%clk 0:00:21.3]} 48...
Kc6 {[%clk 0:00:12.3]} 49. Kb3 {[%clk 0:00:22.7]} 49... Kb6 {[%clk 0:00:13.5]}
50. Kc4 {[%clk 0:00:24]} 50... Be5 {[%clk 0:00:15.1]} 51. a4 {[%clk 0:00:25.3]}
51... Bf6 {[%clk 0:00:16.6]} 52. a5+ {[%clk 0:00:26.7]} 52... Kc6 {[%clk
0:00:18.3]} 53. b5+ {[%clk 0:00:27.6]} 53... Kb7 {[%clk 0:00:19.9]} 54. b6
{[%clk 0:00:21.4]} 54... Ka6 {[%clk 0:00:12.4]} 55. Kb4+ {[%clk 0:00:22.4]}
55... Kb7 {[%clk 0:00:13.3]} 56. Kb5 {[%clk 0:00:23.8]} 56... Be5 {[%clk
0:00:13.3]} 57. a6+ {[%clk 0:00:25.1]} 57... Kc8 {[%clk 0:00:12]} 58. a7 {[%clk
0:00:25.6]} 1-0

[Event "*** Titled Tuesday Blitz"]
[Site "Chess.com"]
[Date "2020.02.04"]
[Round "6"]
[White "Atanejhad"]
[Black "dangerousattack1st"]
[Result "0-1"]
[WhiteElo "2598"]
[BlackElo "2813"]
[TimeControl "180+2"]
[EndTime "10:22:53 PST"]
[Termination "dangerousattack1st won on time"]

1. e4 {[%clk 0:03:01.9]} 1... e5 {[%clk 0:03:00.8]} 2. Nf3 {[%clk 0:03:02.9]}
2... Nc6 {[%clk 0:03:02.1]} 3. Bb5 {[%clk 0:03:04.4]} 3... Nf6 {[%clk 0:03:03]}
4. d3 {[%clk 0:03:04.6]} 4... Bc5 {[%clk 0:03:02.5]} 5. O-O {[%clk 0:03:03]}
5... O-O {[%clk 0:03:03.4]} 6. Bxc6 {[%clk 0:03:03]} 6... bxc6 {[%clk
0:03:04.4]} 7. Bg5 {[%clk 0:02:49.1]} 7... Re8 {[%clk 0:03:01.9]} 8. Nbd2 {[%clk
0:02:42]} 8... d5 {[%clk 0:03:02.1]} 9. Re1 {[%clk 0:02:38]} 9... h6 {[%clk
0:02:57.3]} 10. Bh4 {[%clk 0:02:23.6]} 10... Qd6 {[%clk 0:02:47.8]} 11. Bg3
{[%clk 0:02:16.9]} 11... Bg4 {[%clk 0:02:12.1]} 12. h3 {[%clk 0:02:08.1]} 12...
Bh5 {[%clk 0:02:12.8]} 13. Qc1 {[%clk 0:01:54.8]} 13... dxe4 {[%clk 0:02:08]}
14. dxe4 {[%clk 0:01:42]} 14... Bxf3 {[%clk 0:01:59.3]} 15. Nxf3 {[%clk
0:01:43.9]} 15... Nh5 {[%clk 0:01:58.6]} 16. Kh2 {[%clk 0:01:18.6]} 16... Nxg3
{[%clk 0:01:56.7]} 17. fxg3 {[%clk 0:01:20.4]} 17... f5 {[%clk 0:01:48.8]} 18.
Qd1 {[%clk 0:00:54.7]} 18... Qf6 {[%clk 0:01:18.9]} 19. Qe2 {[%clk 0:00:50.1]}
19... Kh8 {[%clk 0:01:14.5]} 20. Rf1 {[%clk 0:00:50.7]} 20... f4 {[%clk
0:01:13]} 21. g4 {[%clk 0:00:46]} 21... Rad8 {[%clk 0:01:09.6]} 22. Rad1 {[%clk
0:00:45.4]} 22... Be3 {[%clk 0:01:10.1]} 23. Rxd8 {[%clk 0:00:34.5]} 23... Rxd8
{[%clk 0:01:10]} 24. Rd1 {[%clk 0:00:36.4]} 24... Kh7 {[%clk 0:01:07.3]} 25.
Rxd8 {[%clk 0:00:20.6]} 25... Qxd8 {[%clk 0:01:09.2]} 26. Nxe5 {[%clk
0:00:22.1]} 26... Qd4 {[%clk 0:01:06]} 27. Nf3 {[%clk 0:00:23.4]} 27... Qxb2
{[%clk 0:00:55.6]} 28. Qc4 {[%clk 0:00:20.4]} 28... Bf2 {[%clk 0:00:46.2]} 29.
h4 {[%clk 0:00:18.3]} 29... Qc1 {[%clk 0:00:46.1]} 30. g3 {[%clk 0:00:10.4]}
30... Bxg3+ {[%clk 0:00:45.1]} 31. Kg2 {[%clk 0:00:11.6]} 31... Qd1 {[%clk
0:00:42.7]} 32. e5 {[%clk 0:00:10.1]} 32... Bxh4 {[%clk 0:00:21.5]} 33. Qe4+
{[%clk 0:00:09.6]} 33... Kh8 {[%clk 0:00:22]} 34. e6 {[%clk 0:00:09.4]} 34...
Be7 {[%clk 0:00:21.5]} 35. Qxf4 {[%clk 0:00:07.3]} 35... Qe2+ {[%clk 0:00:22.4]}
36. Kh3 {[%clk 0:00:07.5]} 36... Qf1+ {[%clk 0:00:22.1]} 37. Kg3 {[%clk
0:00:04.2]} 37... Bd6 {[%clk 0:00:22.9]} 38. Ne5 {[%clk 0:00:05.6]} 38... Qg1+
{[%clk 0:00:21.2]} 39. Kf3 {[%clk 0:00:04.2]} 39... Qf1+ {[%clk 0:00:21.9]} 40.
Ke4 {[%clk 0:00:04.1]} 40... Qe1+ {[%clk 0:00:22.3]} 41. Qe3 {[%clk 0:00:03.8]}
41... Qb4+ {[%clk 0:00:21.5]} 42. Kf3 {[%clk 0:00:04.8]} 42... Qb1 {[%clk
0:00:18]} 43. Ng6+ {[%clk 0:00:04.9]} 43... Kh7 {[%clk 0:00:18.7]} 44. Qd3
{[%clk 0:00:06.2]} 44... Qh1+ {[%clk 0:00:19]} 45. Ke2 {[%clk 0:00:07.3]} 45...
Qg2+ {[%clk 0:00:19.7]} 46. Kd1 {[%clk 0:00:08]} 46... Qxg4+ {[%clk 0:00:20.8]}
47. Kc1 {[%clk 0:00:04.9]} 47... Qxg6 {[%clk 0:00:22]} 48. Qf3 {[%clk
0:00:05.5]} 48... Qxe6 {[%clk 0:00:22.4]} 0-1

[Event "*** Titled Tuesday Blitz"]
[Site "Chess.com"]
[Date "2020.02.04"]
[Round "6"]
[White "OhanyanEminChess"]
[Black "FedaMaster"]
[Result "0-1"]
[WhiteElo "2463"]
[BlackElo "2598"]
[TimeControl "180+2"]
[EndTime "10:23:06 PST"]
[Termination "FedaMaster won on time"]

1. e4 {[%clk 0:03:01.9]} 1... c5 {[%clk 0:02:57.3]} 2. Nf3 {[%clk 0:03:02]} 2...
d6 {[%clk 0:02:58.1]} 3. d4 {[%clk 0:03:03]} 3... cxd4 {[%clk 0:02:59.4]} 4.
Nxd4 {[%clk 0:03:04.9]} 4... Nf6 {[%clk 0:03:01]} 5. Nc3 {[%clk 0:03:06.5]} 5...
g6 {[%clk 0:03:02.4]} 6. Be3 {[%clk 0:03:07.1]} 6... Bg7 {[%clk 0:03:04]} 7. f3
{[%clk 0:03:08.6]} 7... O-O {[%clk 0:03:05.7]} 8. Qd2 {[%clk 0:03:10.2]} 8...
Nc6 {[%clk 0:03:07.6]} 9. O-O-O {[%clk 0:03:11.7]} 9... d5 {[%clk 0:03:09]} 10.
exd5 {[%clk 0:03:13.6]} 10... Nxd5 {[%clk 0:03:10.9]} 11. Nxc6 {[%clk
0:03:15.3]} 11... bxc6 {[%clk 0:03:12.8]} 12. Bd4 {[%clk 0:03:17]} 12... Bxd4
{[%clk 0:03:14.5]} 13. Qxd4 {[%clk 0:03:18]} 13... Qb6 {[%clk 0:03:16.4]} 14.
Nxd5 {[%clk 0:03:19.2]} 14... cxd5 {[%clk 0:03:16.7]} 15. Qxd5 {[%clk
0:03:20.7]} 15... Rb8 {[%clk 0:03:13]} 16. Qd4 {[%clk 0:03:18.5]} 16... Qc7
{[%clk 0:02:42.4]} 17. Qc4 {[%clk 0:03:13.3]} 17... Qa5 {[%clk 0:02:38.9]} 18.
Qd5 {[%clk 0:03:07.4]} 18... Qb4 {[%clk 0:02:25.4]} 19. Qd4 {[%clk 0:03:04.3]}
19... Qb7 {[%clk 0:02:21.3]} 20. Bc4 {[%clk 0:03:00.4]} 20... Bf5 {[%clk
0:02:00]} 21. Bb3 {[%clk 0:02:59.9]} 21... Rfc8 {[%clk 0:01:52.7]} 22. g4 {[%clk
0:01:24.6]} 22... Be6 {[%clk 0:01:28]} 23. Bxe6 {[%clk 0:01:24]} 23... fxe6
{[%clk 0:01:29.9]} 24. Rhe1 {[%clk 0:00:49.1]} 24... Rc6 {[%clk 0:01:21.2]} 25.
b3 {[%clk 0:00:30.6]} 25... Rbc8 {[%clk 0:01:17.9]} 26. Re2 {[%clk 0:00:31.8]}
26... Qa6 {[%clk 0:01:14.9]} 27. Red2 {[%clk 0:00:19.1]} 27... Qxa2 {[%clk
0:01:15.3]} 28. Qb2 {[%clk 0:00:20.7]} 28... Qa5 {[%clk 0:01:14.7]} 29. Re2
{[%clk 0:00:09]} 29... Qb5 {[%clk 0:01:05.9]} 30. Red2 {[%clk 0:00:02.9]} 30...
Kf7 {[%clk 0:01:03.1]} 31. Kb1 {[%clk 0:00:03.7]} 31... Qc5 {[%clk 0:00:57.9]}
32. Re2 {[%clk 0:00:03.1]} 32... Qb4 {[%clk 0:00:51.2]} 33. Rde1 {[%clk
0:00:02.8]} 33... Rxc2 {[%clk 0:00:49.2]} 34. Qxc2 {[%clk 0:00:04.7]} 34... Rxc2
{[%clk 0:00:49.5]} 35. Kxc2 {[%clk 0:00:06.6]} 35... Qf4 {[%clk 0:00:48.8]} 36.
Re3 {[%clk 0:00:02.4]} 36... Qxh2+ {[%clk 0:00:48.9]} 37. R1e2 {[%clk 0:00:04]}
37... Qg1 {[%clk 0:00:49]} 38. Rxe6 {[%clk 0:00:04.1]} 38... Qc5+ {[%clk
0:00:47.5]} 39. Kb1 {[%clk 0:00:03.8]} 39... Qb4 {[%clk 0:00:45]} 40. R6e3
{[%clk 0:00:02.9]} 40... a5 {[%clk 0:00:46.6]} 41. Ka2 {[%clk 0:00:03.8]} 41...
a4 {[%clk 0:00:47.9]} 42. bxa4 {[%clk 0:00:05.7]} 42... Qxa4+ {[%clk 0:00:49.8]}
43. Kb2 {[%clk 0:00:07.6]} 43... Qd7 {[%clk 0:00:49]} 44. Kc2 {[%clk 0:00:08.3]}
44... h5 {[%clk 0:00:44.8]} 45. gxh5 {[%clk 0:00:10.2]} 45... gxh5 {[%clk
0:00:46.7]} 46. Rd3 {[%clk 0:00:11.8]} 46... Qb5 {[%clk 0:00:46.6]} 47. Kd2
{[%clk 0:00:12.1]} 47... h4 {[%clk 0:00:47]} 48. f4 {[%clk 0:00:11.8]} 48... Qc5
{[%clk 0:00:45]} 49. Ree3 {[%clk 0:00:03.6]} 49... Qb4+ {[%clk 0:00:43.3]} 50.
Ke2 {[%clk 0:00:04.3]} 50... Kg6 {[%clk 0:00:41.4]} 51. f5+ {[%clk 0:00:02.6]}
51... Kxf5 {[%clk 0:00:40.3]} 52. Rxe7 {[%clk 0:00:02.3]} 52... Qxe7+ {[%clk
0:00:40.7]} 53. Re3 {[%clk 0:00:04]} 53... Qg5 {[%clk 0:00:36.4]} 54. Kf2 {[%clk
0:00:03.6]} 54... Qg4 {[%clk 0:00:37.4]} 55. Rf3+ {[%clk 0:00:03.2]} 55... Ke4
{[%clk 0:00:37.6]} 56. Re3+ {[%clk 0:00:04.2]} 56... Kd4 {[%clk 0:00:39.1]} 57.
Ra3 {[%clk 0:00:02.5]} 57... Kc5 {[%clk 0:00:31.8]} 0-1

[Event "*** Titled Tuesday Blitz"]
[Site "Chess.com"]
[Date "2020.02.04"]
[Round "6"]
[White "Rodchenkov_Vitalij"]
[Black "Gordima"]
[Result "0-1"]
[WhiteElo "2599"]
[BlackElo "2793"]
[TimeControl "180+2"]
[EndTime "10:23:13 PST"]
[Termination "Gordima won by resignation"]

1. Nf3 {[%clk 0:03:01.9]} 1... d5 {[%clk 0:02:59.7]} 2. g3 {[%clk 0:03:02.3]}
2... Nf6 {[%clk 0:03:00.9]} 3. Bg2 {[%clk 0:03:02.6]} 3... e6 {[%clk 0:03:02.1]}
4. O-O {[%clk 0:03:02.6]} 4... c5 {[%clk 0:03:03.3]} 5. c4 {[%clk 0:02:58.2]}
5... d4 {[%clk 0:03:04.2]} 6. b4 {[%clk 0:02:43.5]} 6... cxb4 {[%clk 0:03:05.9]}
7. a3 {[%clk 0:02:43.3]} 7... Nc6 {[%clk 0:03:04.2]} 8. d3 {[%clk 0:02:41]} 8...
a5 {[%clk 0:03:02.7]} 9. Bg5 {[%clk 0:02:40.4]} 9... Ra6 {[%clk 0:02:51.7]} 10.
axb4 {[%clk 0:02:34]} 10... Bxb4 {[%clk 0:02:53.6]} 11. Na3 {[%clk 0:02:33.1]}
11... O-O {[%clk 0:02:39.1]} 12. Nc2 {[%clk 0:02:33]} 12... Bc3 {[%clk
0:02:34.2]} 13. Rb1 {[%clk 0:02:32.8]} 13... a4 {[%clk 0:02:29.9]} 14. Bd2
{[%clk 0:02:25]} 14... Bxd2 {[%clk 0:02:24.8]} 15. Qxd2 {[%clk 0:02:23.8]} 15...
Qd6 {[%clk 0:02:13.8]} 16. Rb5 {[%clk 0:02:11.6]} 16... Bd7 {[%clk 0:01:58.8]}
17. Ra1 {[%clk 0:02:09.9]} 17... Rfa8 {[%clk 0:01:50.7]} 18. Na3 {[%clk
0:01:56.7]} 18... Na5 {[%clk 0:01:37.4]} 19. Qb2 {[%clk 0:01:33.6]} 19... Nb3
{[%clk 0:01:27.8]} 20. Rxb7 {[%clk 0:01:03]} 20... Nxa1 {[%clk 0:01:27.5]} 21.
Qxa1 {[%clk 0:01:04]} 21... Bc6 {[%clk 0:01:18.7]} 22. Rb1 {[%clk 0:00:52]}
22... e5 {[%clk 0:01:07]} 23. Nd2 {[%clk 0:00:50.8]} 23... Bxg2 {[%clk 0:01:05]}
24. Kxg2 {[%clk 0:00:51.4]} 24... Rb8 {[%clk 0:00:57.8]} 25. Nb5 {[%clk
0:00:51.4]} 25... Qc6+ {[%clk 0:00:57.3]} 26. Kg1 {[%clk 0:00:52.9]} 26... h5
{[%clk 0:00:54.8]} 27. Qa3 {[%clk 0:00:46.5]} 27... h4 {[%clk 0:00:53.7]} 28.
Rb4 {[%clk 0:00:42.8]} 28... h3 {[%clk 0:00:53.8]} 29. f3 {[%clk 0:00:40.5]}
29... Rba8 {[%clk 0:00:51.8]} 30. Nb1 {[%clk 0:00:34.7]} 30... Nd7 {[%clk
0:00:51.7]} 31. Qc1 {[%clk 0:00:31.4]} 31... Nc5 {[%clk 0:00:45.1]} 32. N1a3
{[%clk 0:00:31.4]} 32... Re8 {[%clk 0:00:38.6]} 33. Rb2 {[%clk 0:00:28.2]} 33...
f6 {[%clk 0:00:35.6]} 34. Qf1 {[%clk 0:00:27]} 34... Qd7 {[%clk 0:00:34.6]} 35.
g4 {[%clk 0:00:25.4]} 35... f5 {[%clk 0:00:36.1]} 36. Qxh3 {[%clk 0:00:26]}
36... Rg6 {[%clk 0:00:35.7]} 37. Rb1 {[%clk 0:00:20.7]} 37... fxg4 {[%clk
0:00:36.6]} 38. Qh5 {[%clk 0:00:18.7]} 38... Rh6 {[%clk 0:00:28.5]} 39. Qxg4
{[%clk 0:00:17.8]} 39... Qf7 {[%clk 0:00:26.7]} 40. Kh1 {[%clk 0:00:16.4]} 40...
Rg6 {[%clk 0:00:27.1]} 41. Qh3 {[%clk 0:00:17.2]} 41... Qf4 {[%clk 0:00:26.4]}
42. Nc7 {[%clk 0:00:12.9]} 42... Rd8 {[%clk 0:00:07.1]} 43. Nd5 {[%clk
0:00:13.9]} 43... Qf7 {[%clk 0:00:06.2]} 44. Rb5 {[%clk 0:00:10.1]} 44... Ne6
{[%clk 0:00:07.1]} 45. Rb1 {[%clk 0:00:09.2]} 45... Nf4 {[%clk 0:00:07.8]} 46.
Nxf4 {[%clk 0:00:10.5]} 46... Qxf4 {[%clk 0:00:09.7]} 47. Nb5 {[%clk 0:00:10.2]}
47... Qe3 {[%clk 0:00:05.7]} 48. Nc7 {[%clk 0:00:10]} 48... Qxe2 {[%clk
0:00:05.3]} 49. Nd5 {[%clk 0:00:10.9]} 49... Re8 {[%clk 0:00:04.1]} 50. Rf1
{[%clk 0:00:04.8]} 50... a3 {[%clk 0:00:04.5]} 51. f4 {[%clk 0:00:04]} 51... a2
{[%clk 0:00:03.5]} 52. f5 {[%clk 0:00:04.7]} 52... Rg5 {[%clk 0:00:03.4]} 53. f6
{[%clk 0:00:05.8]} 53... Rf8 {[%clk 0:00:04.3]} 54. Ne7+ {[%clk 0:00:05.8]}
54... Kf7 {[%clk 0:00:05.1]} 55. fxg7+ {[%clk 0:00:07.5]} 55... Kxg7 {[%clk
0:00:05.6]} 56. Nf5+ {[%clk 0:00:08.7]} 56... Rfxf5 {[%clk 0:00:06.5]} 0-1